{"text_format":"3","workbook":"xlsx","n_sheets":4,"sheets":["cover","species count","Sheet1","Sheet2"],"not_rendered":{"images":3,"defined_names":22,"pivot_tables":1},"read":"whole","date_system":"1904"}

{"sheet":"cover","index":0,"n_rows":41,"n_cols":10,"rows_kept":41,"merged":[[1,0,1,2],[2,0,6,1],[3,8,3,9],[4,2,4,7],[4,8,4,9],[6,2,6,7],[9,0,9,2],[9,6,9,9],[10,0,10,1],[10,2,10,3],[11,1,11,3],[11,5,11,9],[12,1,13,3],[12,5,12,8],[13,5,13,7],[13,8,13,9],[14,1,14,3],[14,5,14,6],[14,7,14,9],[15,1,15,3],[15,5,15,7],[15,8,15,9],[16,1,16,3],[16,6,16,9],[17,0,18,0],[17,1,18,3],[17,6,17,9],[18,8,18,9],[19,0,19,9],[20,0,20,9],[21,0,21,2],[21,5,21,7],[21,8,21,9],[22,0,22,3],[22,5,22,7],[23,0,23,2],[23,5,23,7],[23,8,23,9],[24,0,24,3],[24,5,24,9],[25,0,25,2],[25,5,25,7],[25,8,25,9],[26,0,26,3],[27,0,27,2],[27,6,27,9],[28,0,28,3],[28,5,28,9],[29,0,29,2],[29,5,29,9],[30,0,30,2],[30,5,30,8],[31,0,31,3],[31,5,31,9],[32,0,32,2],[32,5,32,7],[32,8,32,9],[33,0,33,3],[33,5,33,9],[34,0,34,9],[35,1,36,9],[38,0,38,9]]}
[]
[]
["P O Box RVL100, Runiville,                           Harare, Zimbabwe       www.birdlifezimbabwe.org               : Birdlife Zimbabwe",null,"AFRICAN WATERBIRD CENSUS (AfWC)"]
[{"$nulls":8},"Headquarters:"]
[null,null,"Southern Africa",{"$nulls":5},"The Netherlands"]
[]
[null,null,"ZIMBABWE"]
[]
["NB. PLEASE USE A NEW FORM FOR EACH SITE ",{"$nulls":8},"(Use TAB key to move between fields)"]
["DATE OF COUNT (dd/mm/yy):",{"$nulls":4},"SITE NAME:"]
["TIMES OF COUNT:",{"$nulls":4}," (if applicable) PARENT SITE:"]
["COMPILER:"]
["ADDRESS:",{"$nulls":4},"  SITE COUNTED BEFORE (Y/N):"]
[{"$nulls":5},"SITE CODE: (Official use)"]
["LAND LINE:",{"$nulls":4},"SITE COORDINATES:"]
["CELL No.:",{"$nulls":4}," G=GPS/P=Pentad/Q=QDS:"]
["EMAIL:",{"$nulls":4},"DISTRICT:"]
["OTHER PAR-TICIPANTS:",{"$nulls":4},"PROVINCE:"]
[{"$nulls":5},"NEAREST LARGE TOWN:"]
["(For the following questions, combinations of options, where relevant, are allowed)"]
["IMPORTANT: Please ensure all Highlighted fields are filled in"]
["COUNTING METHOD:",{"$nulls":4},"VISIBILITY:"]
[" A=aerial  B=boat  F=foot  V=vehicle  T=telescope",{"$nulls":4},"P=Poor  F=Fair  E=Excellent"]
["TYPE OF WETLAND:",{"$nulls":4},"VEGETATION ON DAM & SHORELINE:"]
["A=rivers, streams, canals  B=freshwater marshes, flooded areas, vleis  C=freshwater lake/dam  D=gravel pit, mineral working  E=fishponds/golf courses  F=grassland, arable land  G=freshwater swamp forest",{"$nulls":4},"G=Grasses/sedges  P=Phragmites/reeds  Q=Potamogeton/pond weed  W=Waterlilies  T=Typha/bulrushes  L=Ludwigia/water primrose  H=Hyacinth  or other (specify) "]
["CONDITION OF WETLAND:",{"$nulls":4},"WATER STATUS:"]
["W=wet  D=dry  O=flooded  P=polluted M=modified U=unknown",{"$nulls":4},"U=Unknown N=Normal (wet) D=Dry O=Overflooded "]
["COVERAGE OF WETLAND:",{"$nulls":4},"WEATHER:"]
["B(ad)=<25%; M(oderate)=25-50%; G(ood)=51-75%; E(xcellent)=76-100%    (If less than 100%, indicate area covered on accompanying map) ",{"$nulls":4},"Very hot/Hot/Warm/Cool/Cold   Dry/Light rain/Heavy rain   Strong Wind/Gusty/Light Wind   Overcast/Partly cloudy/Clear  "]
["EFFECTS OF WEATHER (wind, rain, fog) ON COUNT:",{"$nulls":4},"U= Unknown N= No effect L= Little effect M= Moderate effect S= Strong effect "]
["DISTURBANCE OF SITE:",{"$nulls":4},"COUNT AFFECTED BY DISTURBANCE:"]
["L=Low-flying aircraft  M=motor boats  F=fishing  H=hunting  P=Human  T=trapping  or other (specify) ",{"$nulls":4},"N=none  L=little  M=moderate  S=strong  U=unknown"]
["SITE STATUS: ",{"$nulls":4},"TYPE OF COUNT:"]
["N=National Park  M=Nature Reserve  P=Private  I=IBA  R=Ramsar  U=Unknown  or other (Specify)",{"$nulls":4},"T = Total  S = Sample"]
["If site warrants it, a count of approximately 3-4 hours or 5km of shoreline could be done for uniformity"]
["COMMENTS:"]
[]
[]
["If coverage of wetland is less than 100% please draw/print outline map of area covered by count overleaf, with important geographical features(rivers, hills, roads).   "]
[]
["Insert an image here"]

{"sheet":"species count","index":1,"n_rows":203,"n_cols":18,"rows_kept":203,"merged":[[200,0,200,15]]}
[1,{"$f":"SUM(B2:B3,K2)","v":0},"GREBES",{"$nulls":5},"Note",{"$nulls":8},"Note"]
["TACRU",null,"Little Grebe Tachybaptus ruficollis",{"$nulls":6},"PODCR",null,"Great Crested Grebe Podiceps cristatus"]
["PODNI",null,"Black-necked Grebe Podiceps nigricollis"]
[]
["Total",{"$f":"SUM(B6,K5:K6)","v":0},"PELICANS",{"$nulls":6},"PELEC",null,"unidentified pelicans - Pelecanus spp."]
["PELON",null,"Great White Pelican Pelecanus onocrotalus",{"$nulls":6},"PELRU",null,"Pink-backed Pelican Pelecanus rufescens"]
[]
["Total",{"$f":"SUM(B9,K8:K9)","v":0},"CORMORANTS",{"$nulls":6},"PHALA",null,"unidentified cormorants - Phalacrocorax spp."]
["PHACA",null,"White-breasted Cormorant Phalacrocorax lucidus",{"$nulls":6},"PHAAF",null,"Reed Cormorant Microcarbo africanus"]
[]
["Total",{"$f":"SUM(B12)","v":0},"DARTER"]
["ANHRU",null,"African Darter Anhinga rufa"]
[]
["Total",{"$f":"SUM(B15:B23,K16:K23,K14)","v":0},"HERONS & EGRETS",{"$nulls":6},"ARDEI",null,"unidentified herons - Ardeidae"]
["ARDCI",null,"Grey Heron Ardea cinerea"]
["ARDME",null,"Black-headed Heron Ardea melanocephala",{"$nulls":6},"BUBIB",null,"Cattle Egret Bubulcus ibis"]
["ARDGO",null,"Goliath Heron Ardea goliath",{"$nulls":6},"ARDRA",null,"Squacco Heron Ardeola ralloides"]
["ARDPU",null,"Purple Heron Ardea purpurea",{"$nulls":6},"ARDRU",null,"Rufous-bellied Heron Ardeola rufiventris"]
["EGRAL",null,"Great Egret Ardea alba",{"$nulls":6},"BUTST",null,"Green-backed Heron Butorides striata"]
["EGRVI",null,"Slaty Egret Egretta vinaceigula",{"$nulls":6},"NYCNY",null,"Black-crowned Night-heron Nycticorax nycticorax"]
["EGRAR",null,"Black Heron Egretta ardesiaca",{"$nulls":6},"NYCLE",null,"White-backed Night-heron Calherodius leuconotus"]
["EGRIN",null,"Yellow-billed Egret Ardea brachyrhyncha",{"$nulls":6},"IXOMI",null,"Little Bittern Ixobrychus minutus"]
["EGRGA",null,"Little Egret Egretta garzetta",{"$nulls":6},"IXOST",null,"Dwarf Bittern Ixobrychus sturmii"]
[]
["Total",{"$f":"SUM(B26:B29,K25:K29)","v":0},"STORKS",{"$nulls":8},"unidentified storks"]
["MYCIB",null,"Yellow-billed Stork Mycteria ibis",{"$nulls":6},"CICEP",null,"African Woollyneck Ciconia microscelis"]
["ANALA",null,"African Openbill Anastomus lamelligerus",{"$nulls":6},"CICCI",null,"White Stork Ciconia ciconia"]
["CICNI",null,"Black Stork Ciconia nigra",{"$nulls":6},"EPHSE",null,"Saddle-billed Stork Ephippiorhynchus senegalensis"]
["CICAB",null,"Abdim's Stork Ciconia abdimii",{"$nulls":6},"LEPCR",null,"Marabou Stork Leptoptilos crumenifer"]
[]
["Total",{"$f":"SUM(B32:B33,K32:K33)","v":0},"IBISES & SPOONBILL "]
["THRAE",null,"African Sacred Ibis Threskiornis aethiopicus",{"$nulls":6},"PLEFA",null,"Glossy Ibis Plegadis falcinellus"]
["HAGHA",null,"Hadeda Ibis Bostrychia hagedash",{"$nulls":6},"PLAAL",null,"African Spoonbill Platalea alba"]
[]
["Total",{"$f":"SUM(B36)","v":0},"HAMERKOP"]
["SCOUM",null,"Hamerkop Scopus umbretta"]
[]
["Total",{"$f":"SUM(B39,K38:K39)","v":0},"FLAMINGOS",{"$nulls":6},"PHOEN",null,"unidentified flamingos - Phoenicopteridae spp."]
["PHORO",null,"Greater Flamingo Phoenicopterus roseus",{"$nulls":6},"PHOMI",null,"Lesser Flamingo Phoeniconaias minor"]
[]
["Total",{"$f":"SUM(B42,K42)","v":0},"CRANES",{"$nulls":8},"unidentified cranes"]
["BUGCA",null,"Wattled Crane Bugeranus carunculatus",{"$nulls":6},"BALRE",null,"Grey Crowned Crane Balearica regulorum"]
[]
["Total",{"$f":"SUM(B45:B52,K44:K52)","v":0},"DUCKS",{"$nulls":6},"ANATI",null,"unidentified ducks - Anatidae"]
["DENBI",null,"Fulvous Duck Dendrocygna bicolor",{"$nulls":6},"ANASP",null,"African Black Duck Anas sparsa"]
["DENVI",null,"White-faced Duck Dendrocygna viduata",{"$nulls":6},"ANAUN",null,"Yellow-billed Duck Anas undulata"]
["THALE",null,"White-backed Duck Thalassornis leuconotus",{"$nulls":6},"ANAER",null,"Red-billed Teal Anas erythrorhyncha"]
["PLEGA",null,"Spur-winged Goose Plectropterus gambensis",{"$nulls":6},"ANAHO",null,"Hottentot Teal Spatula hottentota"]
["SARME",null,"African Comb Duck Sarkidiornis melanotos",{"$nulls":6},"ANASM",null,"Cape Shoveler Spatula smithii"]
["ALOAE",null,"Egyptian Goose Alopochen aegyptiaca",{"$nulls":6},"ANAQU",null,"Garganey Spatula querquedula"]
["NETAU",null,"African Pygmy-goose Nettapus auritus",{"$nulls":6},"NETER",null,"Southern Pochard Netta erythropthalma"]
["ANACA",null,"Cape Teal Anas capensis",{"$nulls":6},"OXYMA",null,"Maccoa Duck Oxyura maccoa"]
[]
["Total",{"$f":"SUM(B55)","v":0},"FINFOOT"]
["PODSE",null,"African Finfoot Podica senegalensis"]
[]
["Total",{"$f":"SUM(B58,K57:K58)","v":0},"JACANAS",{"$nulls":6},"JACAN",null,"unidentified jacanas - Jacanidae"]
["ACTAF",null,"African Jacana Actophilornis africanus",{"$nulls":6},"MICCA",null,"Lesser Jacana Microparra capensis"]
[]
["Total",{"$f":"SUM(B61:B62,K60:K62)","v":0},"TERNS & SKIMMER",{"$nulls":6},"STERN",null,"unidentified terns - Sternidae"]
["CHLHY",null,"Whiskered Tern Chlidonias hybrida",{"$nulls":6},"STECA",null,"Caspian Tern Hydroprogne caspia"]
["CHLLE",null,"White-winged Tern Chlidonias leucopterus",{"$nulls":6},"RYNFL",null,"African Skimmer Rynchops flavirostris"]
[]
[]
["Total",{"$f":"SUM(B66,K65:K66)","v":0},"GULLS",{"$nulls":6},"LARID",null,"unidentified gulls - Laridae"]
["LARCI",null,"Grey-headed Gull Larus cirrocephalus",{"$nulls":6},"LARFU",null,"Lesser Black-backed Gull Larus fuscus"]
[]
["Total",{"$f":"SUM(B69:B76,K68:K76)","v":0},"RAILS, GALLINULES & COOTS",{"$nulls":6},"RALLI",null,"unidentified rallids - Rallidae"]
["RALCA",null,"African Rail Rallus caerulescens",{"$nulls":6},"PORMG",null,"Striped Crake Aenigmatolimnas marginalis"]
["COTRU",null,"Red-chested Flufftail Sarothrura rufa",{"$nulls":6},"PORPU",null,"Baillon’s Crake Porzana pusilla"]
["COTBO",null,"Streaky-breasted Flufftail Sarothrura boehmi",{"$nulls":6},"PORPZ",null,"Spotted Crake Porzana porzana"]
["COTAF",null,"Striped Flufftail Sarothrura affinis",{"$nulls":6},"GALCH",null,"Common Moorhen Gallinula chloropus"]
["COTEL",null,"Buff-spotted Flufftail Sarothrura elegans",{"$nulls":6},"GALAN",null,"Lesser Moorhen Gallinula angulata"]
["CRECR",null,"Corn Crake Crex crex",{"$nulls":6},"GALAL",null,"Allen’s Gallinule Porphyrio alleni"]
["POREG",null,"African Crake Crecopsis egregia",{"$nulls":6},"PORPO",null,"African Purple Swamphen P. madagascariensis"]
["PORFL",null,"Black Crake Zapornia flavirostra",{"$nulls":6},"FULCR",null,"Red-knobbed Coot Fulica cristata"]
[]
["Total",{"$f":"SUM(B79:B100,K80:K100,K78)","v":0},"WADERS/SHOREBIRDS",{"$nulls":8},"unidentified waders"]
["ROSBE",null,"Greater Painted-snipe Rostratula benghalensis"]
["HIMHI",null,"Black-winged Stilt Himantopus himantopus",{"$nulls":6},"CHAMA",null,"White-fronted Plover Charadrius marginatus"]
["RECAV",null,"Pied Avocet Recurvirostra avosetta",{"$nulls":6},"CHAPA",null,"Chestnut-banded Plover Charadrius pallidus"]
["BURCA",null,"Spotted Thick-knee Burhinus capensis",{"$nulls":6},"CHAAS",null,"Caspian Plover Charadrius asiaticus"]
["BURVE",null,"Water Thick-knee Burhinus vermiculatus",{"$nulls":6},"LIMLI",null,"Black-tailed Godwit Limosa limosa"]
["CURTE",null,"Temminck’s Courser Cursorius temminckii",{"$nulls":6},"LIMLA",null,"Bar-tailed Godwit Limosa lapponica"]
["RHICI",null,"Three-banded Courser Rhinoptilus cinctus",{"$nulls":6},"NUMPH",null,"Common Whimbrel Numenius phaeopus"]
["RHICH",null,"Bronze-winged Courser Rhinoptilus chalcopterus",{"$nulls":6},"NUMAR",null,"Eurasian Curlew Numenius arquata"]
["GLAPR",null,"Collared Pratincole Glareola pratincola",{"$nulls":6},"TRIST",null,"Marsh Sandpiper Tringa stagnatilis"]
["GLANO",null,"Black-winged Pratincole Glareola nordmanni",{"$nulls":6},"TRINE",null,"Common Greenshank Tringa nebularia"]
["GLANU",null,"Rock Pratincole Glareola nuchalis",{"$nulls":6},"TRIOC",null,"Green Sandpiper Tringa ochropus"]
["VANCR",null,"Long-toed Lapwing Vanellus crassirostris",{"$nulls":6},"TRIGL",null,"Wood Sandpiper Tringa glareola"]
["VANAR",null,"Blacksmith Lapwing Vanellus armatus",{"$nulls":6},"XENCI",null,"Terek Sandpiper Xenus cinerea"]
["VANAL",null,"White-crowned Lapwing Vanellus albiceps",{"$nulls":6},"ACTHY",null,"Common Sandpiper Actitis hypoleucos"]
["VANLU",null,"Senegal Lapwing Vanellus lugubris",{"$nulls":6},"AREIN",null,"Ruddy Turnstone Arenaria interpres"]
["VANCO",null,"Crowned Lapwing Vanellus coronatus",{"$nulls":6},"GALNI",null,"African Snipe Gallinago nigripennis"]
["VANSE",null,"African Wattled Lapwing Vanellus senegallus",{"$nulls":6},"GALMD",null,"Great Snipe Gallinago media"]
["PLUSQ",null,"Grey Plover Pluvialis squatarola",{"$nulls":6},"CALAA",null,"Sanderling Calidris alba"]
["CHAHI",null,"Common Ringed Plover Charadrius hiaticula",{"$nulls":6},"CALMI",null,"Little Stint Calidris minuta"]
["CHAPE",null,"Kittlitz’s Plover Charadrius pecuarius",{"$nulls":6},"CALFE",null,"Curlew Sandpiper Calidris ferruginea"]
["CHATR",null,"Three-banded Plover Charadrius tricollaris",{"$nulls":6},"PHIPU",null,"Ruff Calidris pugnax"]
[]
["Total",{"$f":"SUM(B102:B104,K101:K104)","v":0},"CUCKOOS & COUCALS",{"$nulls":8},"unidentified coucals"]
["CHRCA",null,"Diderick Cuckoo Chrysococcyx caprius",{"$nulls":6},"CENSU",null,"White-browed Coucal Centropus superciliosus"]
["CENCU",null,"Coppery-tailed Coucal Centropus cupreicaudus",{"$nulls":6},"CENSE",null,"Senegal Coucal Centropus senegalensis"]
["CENBU",null,"Burchell’s Coucal Centropus burchelli",{"$nulls":6},"CENGR",null,"Black Coucal Centropus grillii"]
[]
["Total",{"$f":"SUM(B107:B108,K106:K108)","v":0},"OWLS",{"$nulls":8},"unidentified owls"]
["BUBLA",null,"Verreaux’s Eagle-owl Bubo lacteus",{"$nulls":6},"ASICA",null,"Marsh Owl Asio capensis"]
["SCOPE",null,"Pel’s Fishing-owl Scotopelia peli  ",{"$nulls":6},"TYTCA",null,"African Grass-owl Tyto capensis"]
[]
["Total",{"$f":"SUM(B111,K110:K111)","v":0},"SWIFTS",{"$nulls":8},"unidentified swifts"]
["APUHO",null,"Horus Swift Apus horus",{"$nulls":6},"APUCA",null,"White-rumped Swift Apus caffer"]
[]
["Total",{"$f":"SUM(B114:B116,K113:K116)","v":0},"KINGFISHERS",{"$nulls":8},"unidentified kingfishers"]
["CERRU",null,"Pied Kingfisher Ceryle rudis",{"$nulls":6},"ALCSE",null,"Half-collared Kingfisher Alcedo semitorquarta"]
["MEGMA",null,"Giant Kingfisher Megaceryle maxima",{"$nulls":6},"HALSE",null,"Woodland Kingfisher Halcyon senegalensis"]
["CORCR",null,"Malachite Kingfisher Corythornis cristatus",{"$nulls":6},"HALAL",null,"Brown-hooded Kingfisher Halcyon albiventris"]
[]
["Total",{"$f":"SUM(B119:B121,K118:K121)","v":0},"BEE-EATERS",{"$nulls":8},"unidentified bee-eaters"]
["MERPU",null,"Little Bee-eater Merops pusillus",{"$nulls":6},"MERAP",null,"European Bee-eater Merops apiaster"]
["MERBU",null,"White-fronted Bee-eater Merops bullockoides",{"$nulls":6},"MERPE",null,"Blue-cheeked Bee-eater Merops persicus"]
["MERNU",null,"Southern Carmine Bee-eater Merops nubicoides",{"$nulls":6},"MERSU",null,"Madagascar Bee-eater Merops superciliosus"]
[]
["Total",{"$f":"SUM(B124)","v":0},"MOUSEBIRDS"]
["COLST",null,"Speckled Mousebird Colius striatus"]
[]
["Total",{"$f":"SUM(B127:B132,K126:K132)","v":0},"RAPTORS",{"$nulls":8},"unidentified raptors"]
["PANHA",null,"Osprey Pandion haliaetus",{"$nulls":6},"CIRAE",null,"Western Marsh-harrier Circus aeruginosus"]
["HALVO",null,"African Fish-eagle Haliaeetus vocifer",{"$nulls":6},"CIRPY",null,"Montagu’s Harrier Circus pygargus"]
["ELACA",null,"Black-shouldered Kite Elanus caeruleus",{"$nulls":6},"CIRMA",null,"Pallid Harrier Circus macrourus"]
["MILAE",null,"Yellow-billed Kite Milvus aegyptius",{"$nulls":6},"CIRPE",null,"Black-chested Snake-eagle Circaetus pectoralis"]
["MILMG",null,"Black Kite Milvus migrans",{"$nulls":6},"LOPOC",null,"Long-crested Eagle Lophaetus occipitalis"]
["CIRRA",null,"African Marsh-harrier Circus ranivorus",{"$nulls":6},"MICGA",null,"Gabar Goshawk Micronisus gabar"]
[]
["Total",{"$f":"SUM(B135:B136,K134:K136)","v":0},"FALCONS & KESTRELS",{"$nulls":8},"unidentified falcons"]
["FALSU",null,"Eurasian Hobby Falco subbuteo",{"$nulls":6},"FALNA",null,"Lesser Kestrel Falco naumanni"]
["FALAM",null,"Amur Falcon Falco amurensis",{"$nulls":6},"FALBI",null,"Lanner Falcon Falco biarmicus"]
[]
["Total",{"$f":"SUM(B139:B140,K138:K140)","v":0},"LARKS",{"$nulls":8},"unidentified larks"]
["MIRAF",null,"Rufous-naped Lark Mirafra africana",{"$nulls":6},"FALNA",null,"Chestnut-backed Sparrowlark Eremopterix leucotis"]
["CALCI",null,"Red-capped Lark Calandrella cinerea"]
[]
["Total",{"$f":"SUM(B143:B149,K142:K149)","v":0},"SWALLOWS & MARTINS",{"$nulls":8},"unidentified swallows"]
["CECSE",null,"Red-breasted Swallow Cecropis semirufa",{"$nulls":6},"PSAOR",null,"Eastern Saw-wing Psalidoprocne orientalis"]
["CECCU",null,"Greater Striped Swallow Cecropis cucullata",{"$nulls":6},"DELUR",null,"Common House-martin Delichon urbicum"]
["CECAB",null,"Lesser Striped Swallow Cecropis abyssinica",{"$nulls":6},"PSEGR",null,"Grey-rumped Swallow Pseudhirundo griseopyga"]
["HIRRU",null,"Barn Swallow Hirundo rustica",{"$nulls":6},"RIPCI",null,"Banded Martin Riparia cincta"]
["HIRSM",null,"Wire-tailed Swallow Hirundo smithii",{"$nulls":6},"RIPRI",null,"Sand Martin Riparia riparia"]
["HIRAL",null,"White-throated Swallow Hirundo albigularis",{"$nulls":6},"RIPPA",null,"Brown-throated Martin Riparia paludicola"]
["HIRDI",null,"Pearl-breasted Swallow Hirundo dimidiata"]
[]
["Total",{"$f":"SUM(B152:B156,K151:K156)","v":0},"PIPITS, LONGCLAWS & WAGTAILS",{"$nulls":8},"unidentified Motacillidae"]
["ANTCI",null,"African Pipit Anthus cinnamomeus"]
["ANTVA",null,"Buffy Pipit Anthus vaalensis",{"$nulls":6},"MOTAG",null,"African Pied Wagtail Motacilla aguimp"]
["MACCR",null,"Yellow-throated Longclaw Macronyx croceus",{"$nulls":6},"MOTCA",null,"Cape Wagtail Motacilla capensis"]
["MACCA",null,"Cape Longclaw Macronyx capensis",{"$nulls":6},"MOTCL",null,"Mountain Wagtail Motacilla clara"]
["MACAM",null,"Rosy-throated Longclaw Macronyx ameliae",{"$nulls":6},"MOTFL",null,"Yellow Wagtail Motacilla flava"]
[]
["Total",{"$f":"SUM(B159,K158:K159)","v":0},"STONECHAT & WHEATEARS",{"$nulls":8},"unidentified Turdidae"]
["SAXTO",null,"African Stonechat Saxicola torquatus",{"$nulls":6},"OENPI",null,"Capped Wheatear Oenanthe pileata"]
[]
["Total",{"$f":"SUM(B162:B165,K161:K165)","v":0},"CISTICOLAS & ALLIES",{"$nulls":8},"unidentified Cisticolidae"]
["PRISU",null,"Tawny-flanked Prinia Prinia subflava",{"$nulls":6},"CISJU",null,"Zitting Cisticola Cisticola juncidis"]
["CISER",null,"Red-faced Cisticola Cisticola erythrops",{"$nulls":6},"CISAR",null,"Desert Cisticola Cisticola aridulus"]
["CISTI",null,"Levaillant’s Cisticola Cisticola tinniens",{"$nulls":6},"CISCI",null,"Pale-crowned Cisticola Cisticola cinnamomeus"]
["CISNA",null,"Croaking Cisticola Cisticola natalensis",{"$nulls":6},"CISAY",null,"Wing-snapping Cisticola Cisticola ayresii"]
[]
["Total",{"$f":"SUM(B168:B172,K167:K172)","v":0},"WARBLERS",{"$nulls":8},"unidentified warblers"]
["SCHBR",null,"Broad-tailed Warbler Schoenicola brevirostris",{"$nulls":6},"ACRAR",null,"Great Reed-warbler Acrocephalus arundinaceus"]
["BRABA",null,"Little Rush-warbler Bradypterus baboecala",{"$nulls":6},"ACRGR",null,"Lesser Swamp-warbler Acrocephalus gracilirostris"]
["ACRSH",null,"Sedge Warbler Acrocephalus schoenobaenus",{"$nulls":6},"CHLNA",null,"Dark-capped Yellow Warbler Chloropeta natalensis"]
["ACRBA",null,"African Reed-warbler Acrocephalus baeticatus",{"$nulls":6},"SYLBO",null,"Garden Warbler Sylvia borin"]
["ACRPA",null,"Marsh Warbler Acrocephalus palustris",{"$nulls":6},"SYLCO",null,"Common Whitethroat Sylvia communis"]
[]
["Total",{"$f":"SUM(B175:B181,K174:K181)","v":0},"WEAVERS & WIDOWBIRDS",{"$nulls":8},"unidentified weavers"]
["AMBAL",null,"Thick-billed Weaver Amblyospiza albifrons",{"$nulls":6},"EUPMA",null,"Yellow-mantled Widowbird Euplectes macroura"]
["QUEQU",null,"Red-billed Quelea Quelea quelea",{"$nulls":6},"EUPAL",null,"White-winged Widowbird Euplectes albonotatus"]
["EUPAF",null,"Yellow-crowned Bishop Euplectes afer",{"$nulls":6},"PLOIN",null,"Lesser Masked-weaver Ploceus intermedius"]
["EUPOR",null,"Southern Red Bishop Euplectes orix",{"$nulls":6},"PLOVE",null,"Southern Masked-weaver Ploceus velatus"]
["EUPHO",null,"Black-winged Bishop Euplectes hordeaceus",{"$nulls":6},"PLOCU",null,"Village Weaver Ploceus cucullatus"]
["EUPCA",null,"Yellow Bishop Euplectes capensis",{"$nulls":6},"PLOOC",null,"Spectacled Weaver Ploceus ocularis"]
["EUPAR",null,"Red-collared Widowbird Euplectes ardens",{"$nulls":6},"PLOXA",null,"Golden Weaver Ploceus xanthops"]
[]
["Total",{"$f":"SUM(B184:B184,K183:K184)","v":0},"CUCKOO FINCH & WHYDAHS",{"$nulls":8},"unidentified Viduidae"]
["ANOIM",null,"Cuckoo Finch Anomalospiza imberbis",{"$nulls":6},"VIDMA",null,"Pin-tailed Whydah Vidua macroura"]
[]
[]
[]
["Total",{"$f":"SUM(B189:B192,K188:K192)","v":0},"WAXBILLS",{"$nulls":8},"unidentified waxbills"]
["SPOSU",null,"Orange-breasted Waxbill Sporaeginthus subflavus"]
["PALLO",null,"Locustfinch Paludipasser locustella",{"$nulls":6},"SPECU",null,"Bronze Mannikin Spermestes cucullata"]
["ORTAT",null,"African Quailfinch Ortygospiza atricollis",{"$nulls":6},"SPEFR",null,"Magpie Mannikin Spermestes fringilloides"]
["ESTAS",null,"Common Waxbill Estrilda astrild",{"$nulls":6},"SPEBI",null,"Red-backed Mannikin Spermestes bicolor"]
[]
["Total",{"$f":"SUM(B195:B196,K194:K196)","v":0},"CANARIES",{"$nulls":8},"unidentified canaries"]
["CRIAT",null,"Black-throated Canary Crithagra atrogularis"]
["CRIMO",null,"Yellow-fronted Canary Crithagra mozambicus",{"$nulls":6},"CRISU",null,"Brimstone Canary Crithagra sulphuratus"]
[]
["Post to: Secretary, 5 Leeds Close, Newlands, Harare",{"$nulls":9},{"$f":"B203","v":0},"ADDITIONAL SPECIES"]
[{"$nulls":10},{"$f":"SUM(K5,K14,K25,K38,K41,K44,K57,K60,K65,K68,K78,K101,K106,K110,K113,K118,K126,K134,K138,K142,K151,K158,K161,K167,K174,K183,K188,K194)","v":0},"UNIDENTIFIED BIRDS"]
[null,"Email to:",null,"gemsaf@mango.zw",{"$nulls":5},"TOTAL",{"$f":"SUM(B1,B5,B8,B11,B14,B21,B25,B31,B35,B38,B41,B44,B54,B57,B60,B65,B68,B78,B188,K198,B101,B106,B110,B113,B118,B123,B126,B134,B138,B142,B151,B158,B161,B167,B174,B183,B194)","v":0},"Birds of",null,{"$f":"COUNTA(B2:B3,K2,B6,K6,B9,K9,B12,B15:B23,K16:K23,B26:B29,K26:K29,B32:B33,K32:K33,B36,B39,K39,B42,K42,B45:B52,K45:K52,B55,B58,K58,B61:B62,K61:K62,B66,K66,B69:B76,K69:K76,B79:B99,K80:K99,B127:B132,K127:K132,B189:B192,K190:K192,B204:B233,B102:B104,K102:K104,B107:B108,K107:K108,B111,K111,B114:B116,K114:K116,B119:B121,K119:K121,B124,B135:B136,K135:K136,B139:B140,K139,B143:B149,K143:K148,B152:B156,K153:K156,B159,K159,B162:B165,K162:K165,B168:B172,K168:K172,B175:B181,K175:K181,B184,K184,B195:B196,K196)","v":0},"species"]
["Please return this form to your AfWC Secretary ONLY"]
[]
["Total",{"$f":"SUM(B204:B233)","v":0},"ADDITIONAL SPECIES: WETLANDS BIRDS"]

{"sheet":"Sheet1","index":2,"n_rows":6,"n_cols":3,"rows_kept":6,"hidden":true}
["WEATHER","COVERAGE","WATER"]
["U","B","U"]
["N","M","N"]
["L","G","D"]
["M","E","O"]
["S","Unknown"]

{"sheet":"Sheet2","index":3,"n_rows":296,"n_cols":15,"rows_kept":296,"hidden":true}
["No.","Bird","Note","Code",{"$nulls":3},"Coverage","Quality","Method","Water","ice","tidal","Weather","Disturbed"]
[{"$f":"'species count'!B2","v":0},{"$f":"'species count'!C2","v":"Little Grebe Tachybaptus ruficollis"},{"$f":"'species count'!I2","v":0},{"$f":"'species count'!A2","v":"TACRU"},{"$nulls":3},{"$f":"cover!D28","v":0},null,{"$f":"cover!D22","v":0},{"$f":"cover!I26","v":0},null,null,{"$f":"cover!D30","v":0},{"$f":"cover!J31","v":0}]
[{"$f":"'species count'!B3","v":0},{"$f":"'species count'!C3","v":"Black-necked Grebe Podiceps nigricollis"},{"$f":"'species count'!I3","v":0},{"$f":"'species count'!A3","v":"PODNI"}]
[{"$f":"'species count'!K2","v":0},{"$f":"'species count'!L2","v":"Great Crested Grebe Podiceps cristatus"},{"$f":"'species count'!R2","v":0},{"$f":"'species count'!J2","v":"PODCR"}]
[{"$f":"'species count'!B6","v":0},{"$f":"'species count'!C6","v":"Great White Pelican Pelecanus onocrotalus"},{"$f":"'species count'!I6","v":0},{"$f":"'species count'!A6","v":"PELON"}]
[{"$f":"'species count'!K5","v":0},{"$f":"'species count'!L5","v":"unidentified pelicans - Pelecanus spp."},{"$f":"'species count'!R5","v":0},{"$f":"'species count'!J5","v":"PELEC"},{"$nulls":3},"No.","Bird","Note","Code"]
[{"$f":"'species count'!K6","v":0},{"$f":"'species count'!L6","v":"Pink-backed Pelican Pelecanus rufescens"},{"$f":"'species count'!R6","v":0},{"$f":"'species count'!J6","v":"PELRU"},null,null,1,0]
[{"$f":"'species count'!B9","v":0},{"$f":"'species count'!C9","v":"White-breasted Cormorant Phalacrocorax lucidus"},{"$f":"'species count'!I9","v":0},{"$f":"'species count'!A9","v":"PHACA"},null,null,2,"Grand Total"]
[{"$f":"'species count'!K8","v":0},{"$f":"'species count'!L8","v":"unidentified cormorants - Phalacrocorax spp."},{"$f":"'species count'!R8","v":0},{"$f":"'species count'!J8","v":"PHALA"},null,null,3]
[{"$f":"'species count'!K9","v":0},{"$f":"'species count'!L9","v":"Reed Cormorant Microcarbo africanus"},{"$f":"'species count'!R9","v":0},{"$f":"'species count'!J9","v":"PHAAF"},null,null,4]
[{"$f":"'species count'!B12","v":0},{"$f":"'species count'!C12","v":"African Darter Anhinga rufa"},{"$f":"'species count'!I12","v":0},{"$f":"'species count'!A12","v":"ANHRU"},null,null,5]
[{"$f":"'species count'!K14","v":0},{"$f":"'species count'!L14","v":"unidentified herons - Ardeidae"},{"$f":"'species count'!R14","v":0},{"$f":"'species count'!J14","v":"ARDEI"},null,null,6]
[{"$f":"'species count'!B15","v":0},{"$f":"'species count'!C15","v":"Grey Heron Ardea cinerea"},{"$f":"'species count'!I15","v":0},{"$f":"'species count'!A15","v":"ARDCI"},null,null,7]
[{"$f":"'species count'!B16","v":0},{"$f":"'species count'!C16","v":"Black-headed Heron Ardea melanocephala"},{"$f":"'species count'!I16","v":0},{"$f":"'species count'!A16","v":"ARDME"},null,null,8]
[{"$f":"'species count'!B17","v":0},{"$f":"'species count'!C17","v":"Goliath Heron Ardea goliath"},{"$f":"'species count'!I17","v":0},{"$f":"'species count'!A17","v":"ARDGO"},null,null,9]
[{"$f":"'species count'!B18","v":0},{"$f":"'species count'!C18","v":"Purple Heron Ardea purpurea"},{"$f":"'species count'!I18","v":0},{"$f":"'species count'!A18","v":"ARDPU"},null,null,10]
[{"$f":"'species count'!B19","v":0},{"$f":"'species count'!C19","v":"Great Egret Ardea alba"},{"$f":"'species count'!I19","v":0},{"$f":"'species count'!A19","v":"EGRAL"},null,null,11]
[{"$f":"'species count'!B20","v":0},{"$f":"'species count'!C20","v":"Slaty Egret Egretta vinaceigula"},{"$f":"'species count'!I20","v":0},{"$f":"'species count'!A20","v":"EGRVI"},null,null,12]
[{"$f":"'species count'!B21","v":0},{"$f":"'species count'!C21","v":"Black Heron Egretta ardesiaca"},{"$f":"'species count'!I21","v":0},{"$f":"'species count'!A21","v":"EGRAR"},null,null,13]
[{"$f":"'species count'!B22","v":0},{"$f":"'species count'!C22","v":"Yellow-billed Egret Ardea brachyrhyncha"},{"$f":"'species count'!I22","v":0},{"$f":"'species count'!A22","v":"EGRIN"},null,null,14]
[{"$f":"'species count'!B23","v":0},{"$f":"'species count'!C23","v":"Little Egret Egretta garzetta"},{"$f":"'species count'!I23","v":0},{"$f":"'species count'!A23","v":"EGRGA"},null,null,15]
[{"$f":"'species count'!K16","v":0},{"$f":"'species count'!L16","v":"Cattle Egret Bubulcus ibis"},{"$f":"'species count'!R16","v":0},{"$f":"'species count'!J16","v":"BUBIB"},null,null,16]
[{"$f":"'species count'!K17","v":0},{"$f":"'species count'!L17","v":"Squacco Heron Ardeola ralloides"},{"$f":"'species count'!R17","v":0},{"$f":"'species count'!J17","v":"ARDRA"},null,null,17]
[{"$f":"'species count'!K18","v":0},{"$f":"'species count'!L18","v":"Rufous-bellied Heron Ardeola rufiventris"},{"$f":"'species count'!R18","v":0},{"$f":"'species count'!J18","v":"ARDRU"},null,null,18]
[{"$f":"'species count'!K19","v":0},{"$f":"'species count'!L19","v":"Green-backed Heron Butorides striata"},{"$f":"'species count'!R19","v":0},{"$f":"'species count'!J19","v":"BUTST"},null,null,19]
[{"$f":"'species count'!K20","v":0},{"$f":"'species count'!L20","v":"Black-crowned Night-heron Nycticorax nycticorax"},{"$f":"'species count'!R20","v":0},{"$f":"'species count'!J20","v":"NYCNY"},null,null,20]
[{"$f":"'species count'!K21","v":0},{"$f":"'species count'!L21","v":"White-backed Night-heron Calherodius leuconotus"},{"$f":"'species count'!R21","v":0},{"$f":"'species count'!J21","v":"NYCLE"},null,null,21]
[{"$f":"'species count'!K22","v":0},{"$f":"'species count'!L22","v":"Little Bittern Ixobrychus minutus"},{"$f":"'species count'!R22","v":0},{"$f":"'species count'!J22","v":"IXOMI"},null,null,22]
[{"$f":"'species count'!K23","v":0},{"$f":"'species count'!L23","v":"Dwarf Bittern Ixobrychus sturmii"},{"$f":"'species count'!R23","v":0},{"$f":"'species count'!J23","v":"IXOST"},null,null,23]
[{"$f":"'species count'!K25","v":0},{"$f":"'species count'!L25","v":"unidentified storks"},{"$f":"'species count'!R25","v":0},{"$f":"'species count'!J25","v":0},null,null,24]
[{"$f":"'species count'!B26","v":0},{"$f":"'species count'!C26","v":"Yellow-billed Stork Mycteria ibis"},{"$f":"'species count'!I26","v":0},{"$f":"'species count'!A26","v":"MYCIB"},null,null,25]
[{"$f":"'species count'!B27","v":0},{"$f":"'species count'!C27","v":"African Openbill Anastomus lamelligerus"},{"$f":"'species count'!I27","v":0},{"$f":"'species count'!A27","v":"ANALA"},null,null,26]
[{"$f":"'species count'!B28","v":0},{"$f":"'species count'!C28","v":"Black Stork Ciconia nigra"},{"$f":"'species count'!I28","v":0},{"$f":"'species count'!A28","v":"CICNI"},null,null,27]
[{"$f":"'species count'!B29","v":0},{"$f":"'species count'!C29","v":"Abdim's Stork Ciconia abdimii"},{"$f":"'species count'!I29","v":0},{"$f":"'species count'!A29","v":"CICAB"},null,null,28]
[{"$f":"'species count'!K26","v":0},{"$f":"'species count'!L26","v":"African Woollyneck Ciconia microscelis"},{"$f":"'species count'!R26","v":0},{"$f":"'species count'!J26","v":"CICEP"},null,null,29]
[{"$f":"'species count'!K27","v":0},{"$f":"'species count'!L27","v":"White Stork Ciconia ciconia"},{"$f":"'species count'!R27","v":0},{"$f":"'species count'!J27","v":"CICCI"},null,null,30]
[{"$f":"'species count'!K28","v":0},{"$f":"'species count'!L28","v":"Saddle-billed Stork Ephippiorhynchus senegalensis"},{"$f":"'species count'!R28","v":0},{"$f":"'species count'!J28","v":"EPHSE"},null,null,31]
[{"$f":"'species count'!K29","v":0},{"$f":"'species count'!L29","v":"Marabou Stork Leptoptilos crumenifer"},{"$f":"'species count'!R29","v":0},{"$f":"'species count'!J29","v":"LEPCR"},null,null,32]
[{"$f":"'species count'!B32","v":0},{"$f":"'species count'!C32","v":"African Sacred Ibis Threskiornis aethiopicus"},{"$f":"'species count'!I32","v":0},{"$f":"'species count'!A32","v":"THRAE"},null,null,33]
[{"$f":"'species count'!B33","v":0},{"$f":"'species count'!C33","v":"Hadeda Ibis Bostrychia hagedash"},{"$f":"'species count'!I33","v":0},{"$f":"'species count'!A33","v":"HAGHA"},null,null,34]
[{"$f":"'species count'!K32","v":0},{"$f":"'species count'!L32","v":"Glossy Ibis Plegadis falcinellus"},{"$f":"'species count'!R32","v":0},{"$f":"'species count'!J32","v":"PLEFA"},null,null,35]
[{"$f":"'species count'!K33","v":0},{"$f":"'species count'!L33","v":"African Spoonbill Platalea alba"},{"$f":"'species count'!R33","v":0},{"$f":"'species count'!J33","v":"PLAAL"},null,null,36]
[{"$f":"'species count'!B36","v":0},{"$f":"'species count'!C36","v":"Hamerkop Scopus umbretta"},{"$f":"'species count'!I36","v":0},{"$f":"'species count'!A36","v":"SCOUM"},null,null,37]
[{"$f":"'species count'!K38","v":0},{"$f":"'species count'!L38","v":"unidentified flamingos - Phoenicopteridae spp."},{"$f":"'species count'!R38","v":0},{"$f":"'species count'!J38","v":"PHOEN"},null,null,38]
[{"$f":"'species count'!B39","v":0},{"$f":"'species count'!C39","v":"Greater Flamingo Phoenicopterus roseus"},{"$f":"'species count'!I39","v":0},{"$f":"'species count'!A39","v":"PHORO"},null,null,39]
[{"$f":"'species count'!K39","v":0},{"$f":"'species count'!L39","v":"Lesser Flamingo Phoeniconaias minor"},{"$f":"'species count'!R39","v":0},{"$f":"'species count'!J39","v":"PHOMI"},null,null,40]
[{"$f":"'species count'!K41","v":0},{"$f":"'species count'!L41","v":"unidentified cranes"},{"$f":"'species count'!R41","v":0},{"$f":"'species count'!J41","v":0},null,null,41]
[{"$f":"'species count'!B42","v":0},{"$f":"'species count'!C42","v":"Wattled Crane Bugeranus carunculatus"},{"$f":"'species count'!I42","v":0},{"$f":"'species count'!A42","v":"BUGCA"},null,null,42]
[{"$f":"'species count'!K42","v":0},{"$f":"'species count'!L42","v":"Grey Crowned Crane Balearica regulorum"},{"$f":"'species count'!R42","v":0},{"$f":"'species count'!J42","v":"BALRE"},null,null,43]
[{"$f":"'species count'!K44","v":0},{"$f":"'species count'!L44","v":"unidentified ducks - Anatidae"},{"$f":"'species count'!R44","v":0},{"$f":"'species count'!J44","v":"ANATI"},null,null,44]
[{"$f":"'species count'!B45","v":0},{"$f":"'species count'!C45","v":"Fulvous Duck Dendrocygna bicolor"},{"$f":"'species count'!I45","v":0},{"$f":"'species count'!A45","v":"DENBI"},null,null,45]
[{"$f":"'species count'!B46","v":0},{"$f":"'species count'!C46","v":"White-faced Duck Dendrocygna viduata"},{"$f":"'species count'!I46","v":0},{"$f":"'species count'!A46","v":"DENVI"},null,null,46]
[{"$f":"'species count'!B47","v":0},{"$f":"'species count'!C47","v":"White-backed Duck Thalassornis leuconotus"},{"$f":"'species count'!I47","v":0},{"$f":"'species count'!A47","v":"THALE"},null,null,47]
[{"$f":"'species count'!B48","v":0},{"$f":"'species count'!C48","v":"Spur-winged Goose Plectropterus gambensis"},{"$f":"'species count'!I48","v":0},{"$f":"'species count'!A48","v":"PLEGA"},null,null,48]
[{"$f":"'species count'!B49","v":0},{"$f":"'species count'!C49","v":"African Comb Duck Sarkidiornis melanotos"},{"$f":"'species count'!I49","v":0},{"$f":"'species count'!A49","v":"SARME"},null,null,49]
[{"$f":"'species count'!B50","v":0},{"$f":"'species count'!C50","v":"Egyptian Goose Alopochen aegyptiaca"},{"$f":"'species count'!I50","v":0},{"$f":"'species count'!A50","v":"ALOAE"},null,null,50]
[{"$f":"'species count'!B51","v":0},{"$f":"'species count'!C51","v":"African Pygmy-goose Nettapus auritus"},{"$f":"'species count'!I51","v":0},{"$f":"'species count'!A51","v":"NETAU"},null,null,51]
[{"$f":"'species count'!B52","v":0},{"$f":"'species count'!C52","v":"Cape Teal Anas capensis"},{"$f":"'species count'!I52","v":0},{"$f":"'species count'!A52","v":"ANACA"},null,null,52]
[{"$f":"'species count'!K45","v":0},{"$f":"'species count'!L45","v":"African Black Duck Anas sparsa"},{"$f":"'species count'!R45","v":0},{"$f":"'species count'!J45","v":"ANASP"},null,null,53]
[{"$f":"'species count'!K46","v":0},{"$f":"'species count'!L46","v":"Yellow-billed Duck Anas undulata"},{"$f":"'species count'!R46","v":0},{"$f":"'species count'!J46","v":"ANAUN"},null,null,54]
[{"$f":"'species count'!K47","v":0},{"$f":"'species count'!L47","v":"Red-billed Teal Anas erythrorhyncha"},{"$f":"'species count'!R47","v":0},{"$f":"'species count'!J47","v":"ANAER"},null,null,55]
[{"$f":"'species count'!K48","v":0},{"$f":"'species count'!L48","v":"Hottentot Teal Spatula hottentota"},{"$f":"'species count'!R48","v":0},{"$f":"'species count'!J48","v":"ANAHO"},null,null,56]
[{"$f":"'species count'!K49","v":0},{"$f":"'species count'!L49","v":"Cape Shoveler Spatula smithii"},{"$f":"'species count'!R49","v":0},{"$f":"'species count'!J49","v":"ANASM"},null,null,57]
[{"$f":"'species count'!K50","v":0},{"$f":"'species count'!L50","v":"Garganey Spatula querquedula"},{"$f":"'species count'!R50","v":0},{"$f":"'species count'!J50","v":"ANAQU"},null,null,58]
[{"$f":"'species count'!K51","v":0},{"$f":"'species count'!L51","v":"Southern Pochard Netta erythropthalma"},{"$f":"'species count'!R51","v":0},{"$f":"'species count'!J51","v":"NETER"},null,null,59]
[{"$f":"'species count'!K52","v":0},{"$f":"'species count'!L52","v":"Maccoa Duck Oxyura maccoa"},{"$f":"'species count'!R52","v":0},{"$f":"'species count'!J52","v":"OXYMA"},null,null,60]
[{"$f":"'species count'!B55","v":0},{"$f":"'species count'!C55","v":"African Finfoot Podica senegalensis"},{"$f":"'species count'!I55","v":0},{"$f":"'species count'!A55","v":"PODSE"},null,null,61]
[{"$f":"'species count'!K57","v":0},{"$f":"'species count'!L57","v":"unidentified jacanas - Jacanidae"},{"$f":"'species count'!R57","v":0},{"$f":"'species count'!J57","v":"JACAN"},null,null,62]
[{"$f":"'species count'!B58","v":0},{"$f":"'species count'!C58","v":"African Jacana Actophilornis africanus"},{"$f":"'species count'!I58","v":0},{"$f":"'species count'!A58","v":"ACTAF"},null,null,63]
[{"$f":"'species count'!K58","v":0},{"$f":"'species count'!L58","v":"Lesser Jacana Microparra capensis"},{"$f":"'species count'!R58","v":0},{"$f":"'species count'!J58","v":"MICCA"},null,null,64]
[{"$f":"'species count'!K60","v":0},{"$f":"'species count'!L60","v":"unidentified terns - Sternidae"},{"$f":"'species count'!R60","v":0},{"$f":"'species count'!J60","v":"STERN"},null,null,65]
[{"$f":"'species count'!B61","v":0},{"$f":"'species count'!C61","v":"Whiskered Tern Chlidonias hybrida"},{"$f":"'species count'!I61","v":0},{"$f":"'species count'!A61","v":"CHLHY"},null,null,66]
[{"$f":"'species count'!B62","v":0},{"$f":"'species count'!C62","v":"White-winged Tern Chlidonias leucopterus"},{"$f":"'species count'!I62","v":0},{"$f":"'species count'!A62","v":"CHLLE"},null,null,67]
[{"$f":"'species count'!K61","v":0},{"$f":"'species count'!L61","v":"Caspian Tern Hydroprogne caspia"},{"$f":"'species count'!R61","v":0},{"$f":"'species count'!J61","v":"STECA"},null,null,68]
[{"$f":"'species count'!K62","v":0},{"$f":"'species count'!L62","v":"African Skimmer Rynchops flavirostris"},{"$f":"'species count'!R62","v":0},{"$f":"'species count'!J62","v":"RYNFL"},null,null,69]
[{"$f":"'species count'!K65","v":0},{"$f":"'species count'!L65","v":"unidentified gulls - Laridae"},{"$f":"'species count'!R65","v":0},{"$f":"'species count'!J65","v":"LARID"},null,null,70]
[{"$f":"'species count'!B66","v":0},{"$f":"'species count'!C66","v":"Grey-headed Gull Larus cirrocephalus"},{"$f":"'species count'!I66","v":0},{"$f":"'species count'!A66","v":"LARCI"},null,null,71]
[{"$f":"'species count'!K66","v":0},{"$f":"'species count'!L66","v":"Lesser Black-backed Gull Larus fuscus"},{"$f":"'species count'!R66","v":0},{"$f":"'species count'!J66","v":"LARFU"},null,null,72]
[{"$f":"'species count'!K68","v":0},{"$f":"'species count'!L68","v":"unidentified rallids - Rallidae"},{"$f":"'species count'!R68","v":0},{"$f":"'species count'!J68","v":"RALLI"},null,null,73]
[{"$f":"'species count'!B69","v":0},{"$f":"'species count'!C69","v":"African Rail Rallus caerulescens"},{"$f":"'species count'!I69","v":0},{"$f":"'species count'!A69","v":"RALCA"},null,null,74]
[{"$f":"'species count'!B70","v":0},{"$f":"'species count'!C70","v":"Red-chested Flufftail Sarothrura rufa"},{"$f":"'species count'!I70","v":0},{"$f":"'species count'!A70","v":"COTRU"},null,null,75]
[{"$f":"'species count'!B71","v":0},{"$f":"'species count'!C71","v":"Streaky-breasted Flufftail Sarothrura boehmi"},{"$f":"'species count'!I71","v":0},{"$f":"'species count'!A71","v":"COTBO"},null,null,76]
[{"$f":"'species count'!B72","v":0},{"$f":"'species count'!C72","v":"Striped Flufftail Sarothrura affinis"},{"$f":"'species count'!I72","v":0},{"$f":"'species count'!A72","v":"COTAF"},null,null,77]
[{"$f":"'species count'!B73","v":0},{"$f":"'species count'!C73","v":"Buff-spotted Flufftail Sarothrura elegans"},{"$f":"'species count'!I73","v":0},{"$f":"'species count'!A73","v":"COTEL"},null,null,78]
[{"$f":"'species count'!B74","v":0},{"$f":"'species count'!C74","v":"Corn Crake Crex crex"},{"$f":"'species count'!I74","v":0},{"$f":"'species count'!A74","v":"CRECR"},null,null,79]
[{"$f":"'species count'!B75","v":0},{"$f":"'species count'!C75","v":"African Crake Crecopsis egregia"},{"$f":"'species count'!I75","v":0},{"$f":"'species count'!A75","v":"POREG"},null,null,80]
[{"$f":"'species count'!B76","v":0},{"$f":"'species count'!C76","v":"Black Crake Zapornia flavirostra"},{"$f":"'species count'!I76","v":0},{"$f":"'species count'!A76","v":"PORFL"},null,null,81]
[{"$f":"'species count'!K69","v":0},{"$f":"'species count'!L69","v":"Striped Crake Aenigmatolimnas marginalis"},{"$f":"'species count'!R69","v":0},{"$f":"'species count'!J69","v":"PORMG"},null,null,82]
[{"$f":"'species count'!K70","v":0},{"$f":"'species count'!L70","v":"Baillon’s Crake Porzana pusilla"},{"$f":"'species count'!R70","v":0},{"$f":"'species count'!J70","v":"PORPU"},null,null,83]
[{"$f":"'species count'!K71","v":0},{"$f":"'species count'!L71","v":"Spotted Crake Porzana porzana"},{"$f":"'species count'!R71","v":0},{"$f":"'species count'!J71","v":"PORPZ"},null,null,84]
[{"$f":"'species count'!K72","v":0},{"$f":"'species count'!L72","v":"Common Moorhen Gallinula chloropus"},{"$f":"'species count'!R72","v":0},{"$f":"'species count'!J72","v":"GALCH"},null,null,85]
[{"$f":"'species count'!K73","v":0},{"$f":"'species count'!L73","v":"Lesser Moorhen Gallinula angulata"},{"$f":"'species count'!R73","v":0},{"$f":"'species count'!J73","v":"GALAN"},null,null,86]
[{"$f":"'species count'!K74","v":0},{"$f":"'species count'!L74","v":"Allen’s Gallinule Porphyrio alleni"},{"$f":"'species count'!R74","v":0},{"$f":"'species count'!J74","v":"GALAL"},null,null,87]
[{"$f":"'species count'!K75","v":0},{"$f":"'species count'!L75","v":"African Purple Swamphen P. madagascariensis"},{"$f":"'species count'!R75","v":0},{"$f":"'species count'!J75","v":"PORPO"},null,null,88]
[{"$f":"'species count'!K76","v":0},{"$f":"'species count'!L76","v":"Red-knobbed Coot Fulica cristata"},{"$f":"'species count'!R76","v":0},{"$f":"'species count'!J76","v":"FULCR"},null,null,89]
[{"$f":"'species count'!K78","v":0},{"$f":"'species count'!L78","v":"unidentified waders"},{"$f":"'species count'!R78","v":0},{"$f":"'species count'!J78","v":0},null,null,90]
[{"$f":"'species count'!B79","v":0},{"$f":"'species count'!C79","v":"Greater Painted-snipe Rostratula benghalensis"},{"$f":"'species count'!I79","v":0},{"$f":"'species count'!A79","v":"ROSBE"},null,null,91]
[{"$f":"'species count'!B80","v":0},{"$f":"'species count'!C80","v":"Black-winged Stilt Himantopus himantopus"},{"$f":"'species count'!I80","v":0},{"$f":"'species count'!A80","v":"HIMHI"},null,null,92]
[{"$f":"'species count'!B81","v":0},{"$f":"'species count'!C81","v":"Pied Avocet Recurvirostra avosetta"},{"$f":"'species count'!I81","v":0},{"$f":"'species count'!A81","v":"RECAV"},null,null,93]
[{"$f":"'species count'!B82","v":0},{"$f":"'species count'!C82","v":"Spotted Thick-knee Burhinus capensis"},{"$f":"'species count'!I82","v":0},{"$f":"'species count'!A82","v":"BURCA"},null,null,94]
[{"$f":"'species count'!B83","v":0},{"$f":"'species count'!C83","v":"Water Thick-knee Burhinus vermiculatus"},{"$f":"'species count'!I83","v":0},{"$f":"'species count'!A83","v":"BURVE"},null,null,95]
[{"$f":"'species count'!B84","v":0},{"$f":"'species count'!C84","v":"Temminck’s Courser Cursorius temminckii"},{"$f":"'species count'!I84","v":0},{"$f":"'species count'!A84","v":"CURTE"}]
[{"$f":"'species count'!B85","v":0},{"$f":"'species count'!C85","v":"Three-banded Courser Rhinoptilus cinctus"},{"$f":"'species count'!I85","v":0},{"$f":"'species count'!A85","v":"RHICI"}]
[{"$f":"'species count'!B86","v":0},{"$f":"'species count'!C86","v":"Bronze-winged Courser Rhinoptilus chalcopterus"},{"$f":"'species count'!I86","v":0},{"$f":"'species count'!A86","v":"RHICH"}]
[{"$f":"'species count'!B87","v":0},{"$f":"'species count'!C87","v":"Collared Pratincole Glareola pratincola"},{"$f":"'species count'!I87","v":0},{"$f":"'species count'!A87","v":"GLAPR"}]
[{"$f":"'species count'!B88","v":0},{"$f":"'species count'!C88","v":"Black-winged Pratincole Glareola nordmanni"},{"$f":"'species count'!I88","v":0},{"$f":"'species count'!A88","v":"GLANO"}]
[{"$f":"'species count'!B89","v":0},{"$f":"'species count'!C89","v":"Rock Pratincole Glareola nuchalis"},{"$f":"'species count'!I89","v":0},{"$f":"'species count'!A89","v":"GLANU"}]
[{"$f":"'species count'!B90","v":0},{"$f":"'species count'!C90","v":"Long-toed Lapwing Vanellus crassirostris"},{"$f":"'species count'!I90","v":0},{"$f":"'species count'!A90","v":"VANCR"}]
[{"$f":"'species count'!B91","v":0},{"$f":"'species count'!C91","v":"Blacksmith Lapwing Vanellus armatus"},{"$f":"'species count'!I91","v":0},{"$f":"'species count'!A91","v":"VANAR"}]
[{"$f":"'species count'!B92","v":0},{"$f":"'species count'!C92","v":"White-crowned Lapwing Vanellus albiceps"},{"$f":"'species count'!I92","v":0},{"$f":"'species count'!A92","v":"VANAL"}]
[{"$f":"'species count'!B93","v":0},{"$f":"'species count'!C93","v":"Senegal Lapwing Vanellus lugubris"},{"$f":"'species count'!I93","v":0},{"$f":"'species count'!A93","v":"VANLU"}]
[{"$f":"'species count'!B94","v":0},{"$f":"'species count'!C94","v":"Crowned Lapwing Vanellus coronatus"},{"$f":"'species count'!I94","v":0},{"$f":"'species count'!A94","v":"VANCO"}]
[{"$f":"'species count'!B95","v":0},{"$f":"'species count'!C95","v":"African Wattled Lapwing Vanellus senegallus"},{"$f":"'species count'!I95","v":0},{"$f":"'species count'!A95","v":"VANSE"}]
[{"$f":"'species count'!B96","v":0},{"$f":"'species count'!C96","v":"Grey Plover Pluvialis squatarola"},{"$f":"'species count'!I96","v":0},{"$f":"'species count'!A96","v":"PLUSQ"}]
[{"$f":"'species count'!B97","v":0},{"$f":"'species count'!C97","v":"Common Ringed Plover Charadrius hiaticula"},{"$f":"'species count'!I97","v":0},{"$f":"'species count'!A97","v":"CHAHI"}]
[{"$f":"'species count'!B98","v":0},{"$f":"'species count'!C98","v":"Kittlitz’s Plover Charadrius pecuarius"},{"$f":"'species count'!I98","v":0},{"$f":"'species count'!A98","v":"CHAPE"}]
[{"$f":"'species count'!B99","v":0},{"$f":"'species count'!C99","v":"Three-banded Plover Charadrius tricollaris"},{"$f":"'species count'!I99","v":0},{"$f":"'species count'!A99","v":"CHATR"}]
[{"$f":"'species count'!K80","v":0},{"$f":"'species count'!L80","v":"White-fronted Plover Charadrius marginatus"},{"$f":"'species count'!R80","v":0},{"$f":"'species count'!J80","v":"CHAMA"}]
[{"$f":"'species count'!K81","v":0},{"$f":"'species count'!L81","v":"Chestnut-banded Plover Charadrius pallidus"},{"$f":"'species count'!R81","v":0},{"$f":"'species count'!J81","v":"CHAPA"}]
[{"$f":"'species count'!K82","v":0},{"$f":"'species count'!L82","v":"Caspian Plover Charadrius asiaticus"},{"$f":"'species count'!R82","v":0},{"$f":"'species count'!J82","v":"CHAAS"}]
[{"$f":"'species count'!K83","v":0},{"$f":"'species count'!L83","v":"Black-tailed Godwit Limosa limosa"},{"$f":"'species count'!R83","v":0},{"$f":"'species count'!J83","v":"LIMLI"}]
[{"$f":"'species count'!K84","v":0},{"$f":"'species count'!L84","v":"Bar-tailed Godwit Limosa lapponica"},{"$f":"'species count'!R84","v":0},{"$f":"'species count'!J84","v":"LIMLA"}]
[{"$f":"'species count'!K85","v":0},{"$f":"'species count'!L85","v":"Common Whimbrel Numenius phaeopus"},{"$f":"'species count'!R85","v":0},{"$f":"'species count'!J85","v":"NUMPH"}]
[{"$f":"'species count'!K86","v":0},{"$f":"'species count'!L86","v":"Eurasian Curlew Numenius arquata"},{"$f":"'species count'!R86","v":0},{"$f":"'species count'!J86","v":"NUMAR"}]
[{"$f":"'species count'!K87","v":0},{"$f":"'species count'!L87","v":"Marsh Sandpiper Tringa stagnatilis"},{"$f":"'species count'!R87","v":0},{"$f":"'species count'!J87","v":"TRIST"}]
[{"$f":"'species count'!K88","v":0},{"$f":"'species count'!L88","v":"Common Greenshank Tringa nebularia"},{"$f":"'species count'!R88","v":0},{"$f":"'species count'!J88","v":"TRINE"}]
[{"$f":"'species count'!K89","v":0},{"$f":"'species count'!L89","v":"Green Sandpiper Tringa ochropus"},{"$f":"'species count'!R89","v":0},{"$f":"'species count'!J89","v":"TRIOC"}]
[{"$f":"'species count'!K90","v":0},{"$f":"'species count'!L90","v":"Wood Sandpiper Tringa glareola"},{"$f":"'species count'!R90","v":0},{"$f":"'species count'!J90","v":"TRIGL"}]
[{"$f":"'species count'!K91","v":0},{"$f":"'species count'!L91","v":"Terek Sandpiper Xenus cinerea"},{"$f":"'species count'!R91","v":0},{"$f":"'species count'!J91","v":"XENCI"}]
[{"$f":"'species count'!K92","v":0},{"$f":"'species count'!L92","v":"Common Sandpiper Actitis hypoleucos"},{"$f":"'species count'!R92","v":0},{"$f":"'species count'!J92","v":"ACTHY"}]
[{"$f":"'species count'!K93","v":0},{"$f":"'species count'!L93","v":"Ruddy Turnstone Arenaria interpres"},{"$f":"'species count'!R93","v":0},{"$f":"'species count'!J93","v":"AREIN"}]
[{"$f":"'species count'!K94","v":0},{"$f":"'species count'!L94","v":"African Snipe Gallinago nigripennis"},{"$f":"'species count'!R94","v":0},{"$f":"'species count'!J94","v":"GALNI"}]
[{"$f":"'species count'!K95","v":0},{"$f":"'species count'!L95","v":"Great Snipe Gallinago media"},{"$f":"'species count'!R95","v":0},{"$f":"'species count'!J95","v":"GALMD"}]
[{"$f":"'species count'!K96","v":0},{"$f":"'species count'!L96","v":"Sanderling Calidris alba"},{"$f":"'species count'!R96","v":0},{"$f":"'species count'!J96","v":"CALAA"}]
[{"$f":"'species count'!K97","v":0},{"$f":"'species count'!L97","v":"Little Stint Calidris minuta"},{"$f":"'species count'!R97","v":0},{"$f":"'species count'!J97","v":"CALMI"}]
[{"$f":"'species count'!K98","v":0},{"$f":"'species count'!L98","v":"Curlew Sandpiper Calidris ferruginea"},{"$f":"'species count'!R98","v":0},{"$f":"'species count'!J98","v":"CALFE"}]
[{"$f":"'species count'!K99","v":0},{"$f":"'species count'!L99","v":"Ruff Calidris pugnax"},{"$f":"'species count'!R99","v":0},{"$f":"'species count'!J99","v":"PHIPU"}]
[{"$f":"'species count'!K101","v":0},{"$f":"'species count'!L101","v":"unidentified coucals"},{"$f":"'species count'!R101","v":0},{"$f":"'species count'!J101","v":0}]
[{"$f":"'species count'!B102","v":0},{"$f":"'species count'!C102","v":"Diderick Cuckoo Chrysococcyx caprius"},{"$f":"'species count'!I102","v":0},{"$f":"'species count'!A102","v":"CHRCA"}]
[{"$f":"'species count'!B103","v":0},{"$f":"'species count'!C103","v":"Coppery-tailed Coucal Centropus cupreicaudus"},{"$f":"'species count'!I103","v":0},{"$f":"'species count'!A103","v":"CENCU"}]
[{"$f":"'species count'!B104","v":0},{"$f":"'species count'!C104","v":"Burchell’s Coucal Centropus burchelli"},{"$f":"'species count'!I104","v":0},{"$f":"'species count'!A104","v":"CENBU"}]
[{"$f":"'species count'!K102","v":0},{"$f":"'species count'!L102","v":"White-browed Coucal Centropus superciliosus"},{"$f":"'species count'!R102","v":0},{"$f":"'species count'!J102","v":"CENSU"}]
[{"$f":"'species count'!K103","v":0},{"$f":"'species count'!L103","v":"Senegal Coucal Centropus senegalensis"},{"$f":"'species count'!R103","v":0},{"$f":"'species count'!J103","v":"CENSE"}]
[{"$f":"'species count'!K104","v":0},{"$f":"'species count'!L104","v":"Black Coucal Centropus grillii"},{"$f":"'species count'!R104","v":0},{"$f":"'species count'!J104","v":"CENGR"}]
[{"$f":"'species count'!K106","v":0},{"$f":"'species count'!L106","v":"unidentified owls"},{"$f":"'species count'!R106","v":0},{"$f":"'species count'!J106","v":0}]
[{"$f":"'species count'!B107","v":0},{"$f":"'species count'!C107","v":"Verreaux’s Eagle-owl Bubo lacteus"},{"$f":"'species count'!I107","v":0},{"$f":"'species count'!A107","v":"BUBLA"}]
[{"$f":"'species count'!B108","v":0},{"$f":"'species count'!C108","v":"Pel’s Fishing-owl Scotopelia peli  "},{"$f":"'species count'!I108","v":0},{"$f":"'species count'!A108","v":"SCOPE"}]
[{"$f":"'species count'!K107","v":0},{"$f":"'species count'!L107","v":"Marsh Owl Asio capensis"},{"$f":"'species count'!R107","v":0},{"$f":"'species count'!J107","v":"ASICA"}]
[{"$f":"'species count'!K108","v":0},{"$f":"'species count'!L108","v":"African Grass-owl Tyto capensis"},{"$f":"'species count'!R108","v":0},{"$f":"'species count'!J108","v":"TYTCA"}]
[{"$f":"'species count'!K110","v":0},{"$f":"'species count'!L110","v":"unidentified swifts"},{"$f":"'species count'!R110","v":0},{"$f":"'species count'!J110","v":0}]
[{"$f":"'species count'!B111","v":0},{"$f":"'species count'!C111","v":"Horus Swift Apus horus"},{"$f":"'species count'!I111","v":0},{"$f":"'species count'!A111","v":"APUHO"}]
[{"$f":"'species count'!K111","v":0},{"$f":"'species count'!L111","v":"White-rumped Swift Apus caffer"},{"$f":"'species count'!R111","v":0},{"$f":"'species count'!J111","v":"APUCA"}]
[{"$f":"'species count'!K113","v":0},{"$f":"'species count'!L113","v":"unidentified kingfishers"},{"$f":"'species count'!R113","v":0},{"$f":"'species count'!J113","v":0}]
[{"$f":"'species count'!B114","v":0},{"$f":"'species count'!C114","v":"Pied Kingfisher Ceryle rudis"},{"$f":"'species count'!I114","v":0},{"$f":"'species count'!A114","v":"CERRU"}]
[{"$f":"'species count'!B115","v":0},{"$f":"'species count'!C115","v":"Giant Kingfisher Megaceryle maxima"},{"$f":"'species count'!I115","v":0},{"$f":"'species count'!A115","v":"MEGMA"}]
[{"$f":"'species count'!B116","v":0},{"$f":"'species count'!C116","v":"Malachite Kingfisher Corythornis cristatus"},{"$f":"'species count'!I116","v":0},{"$f":"'species count'!A116","v":"CORCR"}]
[{"$f":"'species count'!B192","v":0},{"$f":"'species count'!L114","v":"Half-collared Kingfisher Alcedo semitorquarta"},{"$f":"'species count'!I192","v":0},{"$f":"'species count'!J114","v":"ALCSE"}]
[{"$f":"'species count'!B193","v":0},{"$f":"'species count'!L115","v":"Woodland Kingfisher Halcyon senegalensis"},{"$f":"'species count'!I193","v":0},{"$f":"'species count'!J115","v":"HALSE"}]
[{"$f":"'species count'!B194","v":0},{"$f":"'species count'!L116","v":"Brown-hooded Kingfisher Halcyon albiventris"},{"$f":"'species count'!I194","v":0},{"$f":"'species count'!J116","v":"HALAL"}]
[{"$f":"'species count'!K118","v":0},{"$f":"'species count'!L118","v":"unidentified bee-eaters"},{"$f":"'species count'!R118","v":0},{"$f":"'species count'!J118","v":0}]
[{"$f":"'species count'!B119","v":0},{"$f":"'species count'!C119","v":"Little Bee-eater Merops pusillus"},{"$f":"'species count'!I119","v":0},{"$f":"'species count'!A119","v":"MERPU"}]
[{"$f":"'species count'!B120","v":0},{"$f":"'species count'!C120","v":"White-fronted Bee-eater Merops bullockoides"},{"$f":"'species count'!I120","v":0},{"$f":"'species count'!A120","v":"MERBU"}]
[{"$f":"'species count'!B121","v":0},{"$f":"'species count'!C121","v":"Southern Carmine Bee-eater Merops nubicoides"},{"$f":"'species count'!I121","v":0},{"$f":"'species count'!A121","v":"MERNU"}]
[{"$f":"'species count'!K119","v":0},{"$f":"'species count'!L119","v":"European Bee-eater Merops apiaster"},{"$f":"'species count'!R119","v":0},{"$f":"'species count'!J119","v":"MERAP"}]
[{"$f":"'species count'!K120","v":0},{"$f":"'species count'!L120","v":"Blue-cheeked Bee-eater Merops persicus"},{"$f":"'species count'!R120","v":0},{"$f":"'species count'!J120","v":"MERPE"}]
[{"$f":"'species count'!K121","v":0},{"$f":"'species count'!L121","v":"Madagascar Bee-eater Merops superciliosus"},{"$f":"'species count'!R121","v":0},{"$f":"'species count'!J121","v":"MERSU"}]
[{"$f":"'species count'!B124","v":0},{"$f":"'species count'!C124","v":"Speckled Mousebird Colius striatus"},{"$f":"'species count'!I124","v":0},{"$f":"'species count'!A124","v":"COLST"}]
[{"$f":"'species count'!K126","v":0},{"$f":"'species count'!L126","v":"unidentified raptors"},{"$f":"'species count'!R126","v":0},{"$f":"'species count'!K126","v":0}]
[{"$f":"'species count'!B127","v":0},{"$f":"'species count'!C127","v":"Osprey Pandion haliaetus"},{"$f":"'species count'!I127","v":0},{"$f":"'species count'!A127","v":"PANHA"}]
[{"$f":"'species count'!B128","v":0},{"$f":"'species count'!C128","v":"African Fish-eagle Haliaeetus vocifer"},{"$f":"'species count'!I128","v":0},{"$f":"'species count'!A128","v":"HALVO"}]
[{"$f":"'species count'!B129","v":0},{"$f":"'species count'!C129","v":"Black-shouldered Kite Elanus caeruleus"},{"$f":"'species count'!I129","v":0},{"$f":"'species count'!A129","v":"ELACA"}]
[{"$f":"'species count'!B130","v":0},{"$f":"'species count'!C130","v":"Yellow-billed Kite Milvus aegyptius"},{"$f":"'species count'!I130","v":0},{"$f":"'species count'!A130","v":"MILAE"}]
[{"$f":"'species count'!B131","v":0},{"$f":"'species count'!C131","v":"Black Kite Milvus migrans"},{"$f":"'species count'!I131","v":0},{"$f":"'species count'!A131","v":"MILMG"}]
[{"$f":"'species count'!B132","v":0},{"$f":"'species count'!C132","v":"African Marsh-harrier Circus ranivorus"},{"$f":"'species count'!I132","v":0},{"$f":"'species count'!A132","v":"CIRRA"}]
[{"$f":"'species count'!K127","v":0},{"$f":"'species count'!L127","v":"Western Marsh-harrier Circus aeruginosus"},{"$f":"'species count'!R127","v":0},{"$f":"'species count'!J127","v":"CIRAE"}]
[{"$f":"'species count'!K128","v":0},{"$f":"'species count'!L128","v":"Montagu’s Harrier Circus pygargus"},{"$f":"'species count'!R128","v":0},{"$f":"'species count'!J128","v":"CIRPY"}]
[{"$f":"'species count'!K129","v":0},{"$f":"'species count'!L129","v":"Pallid Harrier Circus macrourus"},{"$f":"'species count'!R129","v":0},{"$f":"'species count'!J129","v":"CIRMA"}]
[{"$f":"'species count'!K130","v":0},{"$f":"'species count'!L130","v":"Black-chested Snake-eagle Circaetus pectoralis"},{"$f":"'species count'!R130","v":0},{"$f":"'species count'!J130","v":"CIRPE"}]
[{"$f":"'species count'!K131","v":0},{"$f":"'species count'!L131","v":"Long-crested Eagle Lophaetus occipitalis"},{"$f":"'species count'!R131","v":0},{"$f":"'species count'!J131","v":"LOPOC"}]
[{"$f":"'species count'!K132","v":0},{"$f":"'species count'!L132","v":"Gabar Goshawk Micronisus gabar"},{"$f":"'species count'!R132","v":0},{"$f":"'species count'!J132","v":"MICGA"}]
[{"$f":"'species count'!K134","v":0},{"$f":"'species count'!L134","v":"unidentified falcons"},{"$f":"'species count'!R134","v":0},{"$f":"'species count'!J134","v":0}]
[{"$f":"'species count'!B135","v":0},{"$f":"'species count'!C135","v":"Eurasian Hobby Falco subbuteo"},{"$f":"'species count'!I135","v":0},{"$f":"'species count'!A135","v":"FALSU"}]
[{"$f":"'species count'!B136","v":0},{"$f":"'species count'!C136","v":"Amur Falcon Falco amurensis"},{"$f":"'species count'!I136","v":0},{"$f":"'species count'!A136","v":"FALAM"}]
[{"$f":"'species count'!K135","v":0},{"$f":"'species count'!L135","v":"Lesser Kestrel Falco naumanni"},{"$f":"'species count'!R135","v":0},{"$f":"'species count'!J135","v":"FALNA"}]
[{"$f":"'species count'!K136","v":0},{"$f":"'species count'!L136","v":"Lanner Falcon Falco biarmicus"},{"$f":"'species count'!R136","v":0},{"$f":"'species count'!J136","v":"FALBI"}]
[{"$f":"'species count'!K138","v":0},{"$f":"'species count'!L138","v":"unidentified larks"},{"$f":"'species count'!R138","v":0},{"$f":"'species count'!J138","v":0}]
[{"$f":"'species count'!B139","v":0},{"$f":"'species count'!C139","v":"Rufous-naped Lark Mirafra africana"},{"$f":"'species count'!I139","v":0},{"$f":"'species count'!A139","v":"MIRAF"}]
[{"$f":"'species count'!B140","v":0},{"$f":"'species count'!C140","v":"Red-capped Lark Calandrella cinerea"},{"$f":"'species count'!I140","v":0},{"$f":"'species count'!A140","v":"CALCI"}]
[{"$f":"'species count'!K139","v":0},{"$f":"'species count'!L139","v":"Chestnut-backed Sparrowlark Eremopterix leucotis"},{"$f":"'species count'!R139","v":0},{"$f":"'species count'!J139","v":"FALNA"}]
[{"$f":"'species count'!K142","v":0},{"$f":"'species count'!L142","v":"unidentified swallows"},{"$f":"'species count'!R142","v":0},{"$f":"'species count'!J142","v":0}]
[{"$f":"'species count'!B143","v":0},{"$f":"'species count'!C143","v":"Red-breasted Swallow Cecropis semirufa"},{"$f":"'species count'!I143","v":0},{"$f":"'species count'!A143","v":"CECSE"}]
[{"$f":"'species count'!B144","v":0},{"$f":"'species count'!C144","v":"Greater Striped Swallow Cecropis cucullata"},{"$f":"'species count'!I144","v":0},{"$f":"'species count'!A144","v":"CECCU"}]
[{"$f":"'species count'!B145","v":0},{"$f":"'species count'!C145","v":"Lesser Striped Swallow Cecropis abyssinica"},{"$f":"'species count'!I145","v":0},{"$f":"'species count'!A145","v":"CECAB"}]
[{"$f":"'species count'!B146","v":0},{"$f":"'species count'!C146","v":"Barn Swallow Hirundo rustica"},{"$f":"'species count'!I146","v":0},{"$f":"'species count'!A146","v":"HIRRU"}]
[{"$f":"'species count'!B147","v":0},{"$f":"'species count'!C147","v":"Wire-tailed Swallow Hirundo smithii"},{"$f":"'species count'!I147","v":0},{"$f":"'species count'!A147","v":"HIRSM"}]
[{"$f":"'species count'!B148","v":0},{"$f":"'species count'!C148","v":"White-throated Swallow Hirundo albigularis"},{"$f":"'species count'!I148","v":0},{"$f":"'species count'!A148","v":"HIRAL"}]
[{"$f":"'species count'!B149","v":0},{"$f":"'species count'!C149","v":"Pearl-breasted Swallow Hirundo dimidiata"},{"$f":"'species count'!I149","v":0},{"$f":"'species count'!A149","v":"HIRDI"}]
[{"$f":"'species count'!K143","v":0},{"$f":"'species count'!L143","v":"Eastern Saw-wing Psalidoprocne orientalis"},{"$f":"'species count'!R143","v":0},{"$f":"'species count'!J143","v":"PSAOR"}]
[{"$f":"'species count'!K144","v":0},{"$f":"'species count'!L144","v":"Common House-martin Delichon urbicum"},{"$f":"'species count'!R144","v":0},{"$f":"'species count'!J144","v":"DELUR"}]
[{"$f":"'species count'!K145","v":0},{"$f":"'species count'!L145","v":"Grey-rumped Swallow Pseudhirundo griseopyga"},{"$f":"'species count'!R145","v":0},{"$f":"'species count'!J145","v":"PSEGR"}]
[{"$f":"'species count'!K146","v":0},{"$f":"'species count'!L146","v":"Banded Martin Riparia cincta"},{"$f":"'species count'!R146","v":0},{"$f":"'species count'!J146","v":"RIPCI"}]
[{"$f":"'species count'!K147","v":0},{"$f":"'species count'!L147","v":"Sand Martin Riparia riparia"},{"$f":"'species count'!R147","v":0},{"$f":"'species count'!J147","v":"RIPRI"}]
[{"$f":"'species count'!K148","v":0},{"$f":"'species count'!L148","v":"Brown-throated Martin Riparia paludicola"},{"$f":"'species count'!R148","v":0},{"$f":"'species count'!J148","v":"RIPPA"}]
[{"$f":"'species count'!K151","v":0},{"$f":"'species count'!L151","v":"unidentified Motacillidae"},{"$f":"'species count'!R151","v":0},{"$f":"'species count'!J151","v":0}]
[{"$f":"'species count'!B152","v":0},{"$f":"'species count'!C152","v":"African Pipit Anthus cinnamomeus"},{"$f":"'species count'!I152","v":0},{"$f":"'species count'!A152","v":"ANTCI"}]
[{"$f":"'species count'!B153","v":0},{"$f":"'species count'!C153","v":"Buffy Pipit Anthus vaalensis"},{"$f":"'species count'!I153","v":0},{"$f":"'species count'!A153","v":"ANTVA"}]
[{"$f":"'species count'!B154","v":0},{"$f":"'species count'!C154","v":"Yellow-throated Longclaw Macronyx croceus"},{"$f":"'species count'!I154","v":0},{"$f":"'species count'!A154","v":"MACCR"}]
[{"$f":"'species count'!B155","v":0},{"$f":"'species count'!C155","v":"Cape Longclaw Macronyx capensis"},{"$f":"'species count'!I155","v":0},{"$f":"'species count'!A155","v":"MACCA"}]
[{"$f":"'species count'!B156","v":0},{"$f":"'species count'!C156","v":"Rosy-throated Longclaw Macronyx ameliae"},{"$f":"'species count'!I156","v":0},{"$f":"'species count'!A156","v":"MACAM"}]
[{"$f":"'species count'!K153","v":0},{"$f":"'species count'!L153","v":"African Pied Wagtail Motacilla aguimp"},{"$f":"'species count'!R153","v":0},{"$f":"'species count'!J153","v":"MOTAG"}]
[{"$f":"'species count'!K154","v":0},{"$f":"'species count'!L154","v":"Cape Wagtail Motacilla capensis"},{"$f":"'species count'!R154","v":0},{"$f":"'species count'!J154","v":"MOTCA"}]
[{"$f":"'species count'!K155","v":0},{"$f":"'species count'!L155","v":"Mountain Wagtail Motacilla clara"},{"$f":"'species count'!R155","v":0},{"$f":"'species count'!J155","v":"MOTCL"}]
[{"$f":"'species count'!K156","v":0},{"$f":"'species count'!L156","v":"Yellow Wagtail Motacilla flava"},{"$f":"'species count'!R156","v":0},{"$f":"'species count'!J156","v":"MOTFL"}]
[{"$f":"'species count'!K158","v":0},{"$f":"'species count'!L158","v":"unidentified Turdidae"},{"$f":"'species count'!R158","v":0},{"$f":"'species count'!J158","v":0}]
[{"$f":"'species count'!B159","v":0},{"$f":"'species count'!C159","v":"African Stonechat Saxicola torquatus"},{"$f":"'species count'!I159","v":0},{"$f":"'species count'!A159","v":"SAXTO"}]
[{"$f":"'species count'!K159","v":0},{"$f":"'species count'!L159","v":"Capped Wheatear Oenanthe pileata"},{"$f":"'species count'!R159","v":0},{"$f":"'species count'!J159","v":"OENPI"}]
[{"$f":"'species count'!K161","v":0},{"$f":"'species count'!L161","v":"unidentified Cisticolidae"},{"$f":"'species count'!R161","v":0},{"$f":"'species count'!J161","v":0}]
[{"$f":"'species count'!B162","v":0},{"$f":"'species count'!C162","v":"Tawny-flanked Prinia Prinia subflava"},{"$f":"'species count'!I162","v":0},{"$f":"'species count'!A162","v":"PRISU"}]
[{"$f":"'species count'!B163","v":0},{"$f":"'species count'!C163","v":"Red-faced Cisticola Cisticola erythrops"},{"$f":"'species count'!I163","v":0},{"$f":"'species count'!A163","v":"CISER"}]
[{"$f":"'species count'!B164","v":0},{"$f":"'species count'!C164","v":"Levaillant’s Cisticola Cisticola tinniens"},{"$f":"'species count'!I164","v":0},{"$f":"'species count'!A164","v":"CISTI"}]
[{"$f":"'species count'!B165","v":0},{"$f":"'species count'!C165","v":"Croaking Cisticola Cisticola natalensis"},{"$f":"'species count'!I165","v":0},{"$f":"'species count'!A165","v":"CISNA"}]
[{"$f":"'species count'!K162","v":0},{"$f":"'species count'!L162","v":"Zitting Cisticola Cisticola juncidis"},{"$f":"'species count'!R162","v":0},{"$f":"'species count'!J162","v":"CISJU"}]
[{"$f":"'species count'!K163","v":0},{"$f":"'species count'!L163","v":"Desert Cisticola Cisticola aridulus"},{"$f":"'species count'!R163","v":0},{"$f":"'species count'!J163","v":"CISAR"}]
[{"$f":"'species count'!K164","v":0},{"$f":"'species count'!L164","v":"Pale-crowned Cisticola Cisticola cinnamomeus"},{"$f":"'species count'!R164","v":0},{"$f":"'species count'!J164","v":"CISCI"}]
[{"$f":"'species count'!K165","v":0},{"$f":"'species count'!L165","v":"Wing-snapping Cisticola Cisticola ayresii"},{"$f":"'species count'!R165","v":0},{"$f":"'species count'!J165","v":"CISAY"}]
[{"$f":"'species count'!K167","v":0},{"$f":"'species count'!L167","v":"unidentified warblers"},{"$f":"'species count'!R167","v":0},{"$f":"'species count'!J167","v":0}]
[{"$f":"'species count'!B168","v":0},{"$f":"'species count'!C168","v":"Broad-tailed Warbler Schoenicola brevirostris"},{"$f":"'species count'!I168","v":0},{"$f":"'species count'!A168","v":"SCHBR"}]
[{"$f":"'species count'!B169","v":0},{"$f":"'species count'!C169","v":"Little Rush-warbler Bradypterus baboecala"},{"$f":"'species count'!I169","v":0},{"$f":"'species count'!A169","v":"BRABA"}]
[{"$f":"'species count'!B170","v":0},{"$f":"'species count'!C170","v":"Sedge Warbler Acrocephalus schoenobaenus"},{"$f":"'species count'!I170","v":0},{"$f":"'species count'!A170","v":"ACRSH"}]
[{"$f":"'species count'!B171","v":0},{"$f":"'species count'!C171","v":"African Reed-warbler Acrocephalus baeticatus"},{"$f":"'species count'!I171","v":0},{"$f":"'species count'!A171","v":"ACRBA"}]
[{"$f":"'species count'!B172","v":0},{"$f":"'species count'!C172","v":"Marsh Warbler Acrocephalus palustris"},{"$f":"'species count'!I172","v":0},{"$f":"'species count'!A172","v":"ACRPA"}]
[{"$f":"'species count'!K168","v":0},{"$f":"'species count'!L168","v":"Great Reed-warbler Acrocephalus arundinaceus"},{"$f":"'species count'!R168","v":0},{"$f":"'species count'!J168","v":"ACRAR"}]
[{"$f":"'species count'!K169","v":0},{"$f":"'species count'!L169","v":"Lesser Swamp-warbler Acrocephalus gracilirostris"},{"$f":"'species count'!R169","v":0},{"$f":"'species count'!J169","v":"ACRGR"}]
[{"$f":"'species count'!K170","v":0},{"$f":"'species count'!L170","v":"Dark-capped Yellow Warbler Chloropeta natalensis"},{"$f":"'species count'!R170","v":0},{"$f":"'species count'!J170","v":"CHLNA"}]
[{"$f":"'species count'!K171","v":0},{"$f":"'species count'!L171","v":"Garden Warbler Sylvia borin"},{"$f":"'species count'!R171","v":0},{"$f":"'species count'!J171","v":"SYLBO"}]
[{"$f":"'species count'!K172","v":0},{"$f":"'species count'!L172","v":"Common Whitethroat Sylvia communis"},{"$f":"'species count'!R172","v":0},{"$f":"'species count'!J172","v":"SYLCO"}]
[{"$f":"'species count'!K174","v":0},{"$f":"'species count'!L174","v":"unidentified weavers"},{"$f":"'species count'!R174","v":0},{"$f":"'species count'!J174","v":0}]
[{"$f":"'species count'!B175","v":0},{"$f":"'species count'!C175","v":"Thick-billed Weaver Amblyospiza albifrons"},{"$f":"'species count'!I175","v":0},{"$f":"'species count'!A175","v":"AMBAL"}]
[{"$f":"'species count'!B176","v":0},{"$f":"'species count'!C176","v":"Red-billed Quelea Quelea quelea"},{"$f":"'species count'!I176","v":0},{"$f":"'species count'!A176","v":"QUEQU"}]
[{"$f":"'species count'!B177","v":0},{"$f":"'species count'!C177","v":"Yellow-crowned Bishop Euplectes afer"},{"$f":"'species count'!I177","v":0},{"$f":"'species count'!A177","v":"EUPAF"}]
[{"$f":"'species count'!B178","v":0},{"$f":"'species count'!C178","v":"Southern Red Bishop Euplectes orix"},{"$f":"'species count'!I178","v":0},{"$f":"'species count'!A178","v":"EUPOR"}]
[{"$f":"'species count'!B179","v":0},{"$f":"'species count'!C179","v":"Black-winged Bishop Euplectes hordeaceus"},{"$f":"'species count'!I179","v":0},{"$f":"'species count'!A179","v":"EUPHO"}]
[{"$f":"'species count'!B180","v":0},{"$f":"'species count'!C180","v":"Yellow Bishop Euplectes capensis"},{"$f":"'species count'!I180","v":0},{"$f":"'species count'!A180","v":"EUPCA"}]
[{"$f":"'species count'!B181","v":0},{"$f":"'species count'!C181","v":"Red-collared Widowbird Euplectes ardens"},{"$f":"'species count'!I181","v":0},{"$f":"'species count'!A181","v":"EUPAR"}]
[{"$f":" 'species count'!K175","v":0},{"$f":"'species count'!L175","v":"Yellow-mantled Widowbird Euplectes macroura"},{"$f":"'species count'!I175","v":0},{"$f":"'species count'!J175","v":"EUPMA"}]
[{"$f":" 'species count'!K176","v":0},{"$f":"'species count'!L176","v":"White-winged Widowbird Euplectes albonotatus"},{"$f":"'species count'!I176","v":0},{"$f":"'species count'!J176","v":"EUPAL"}]
[{"$f":" 'species count'!K177","v":0},{"$f":"'species count'!L177","v":"Lesser Masked-weaver Ploceus intermedius"},{"$f":"'species count'!I177","v":0},{"$f":"'species count'!J177","v":"PLOIN"}]
[{"$f":" 'species count'!K178","v":0},{"$f":"'species count'!L178","v":"Southern Masked-weaver Ploceus velatus"},{"$f":"'species count'!I178","v":0},{"$f":"'species count'!J178","v":"PLOVE"}]
[{"$f":" 'species count'!K179","v":0},{"$f":"'species count'!L179","v":"Village Weaver Ploceus cucullatus"},{"$f":"'species count'!I179","v":0},{"$f":"'species count'!J179","v":"PLOCU"}]
[{"$f":" 'species count'!K180","v":0},{"$f":"'species count'!L180","v":"Spectacled Weaver Ploceus ocularis"},{"$f":"'species count'!I180","v":0},{"$f":"'species count'!J180","v":"PLOOC"}]
[{"$f":" 'species count'!K181","v":0},{"$f":"'species count'!L181","v":"Golden Weaver Ploceus xanthops"},{"$f":"'species count'!R181","v":0},{"$f":"'species count'!J181","v":"PLOXA"}]
[{"$f":" 'species count'!K183","v":0},{"$f":"'species count'!L183","v":"unidentified Viduidae"},{"$f":"'species count'!R183","v":0},{"$f":"'species count'!J183","v":0}]
[{"$f":"'species count'!B184","v":0},{"$f":"'species count'!C184","v":"Cuckoo Finch Anomalospiza imberbis"},{"$f":"'species count'!I184","v":0},{"$f":"'species count'!A184","v":"ANOIM"}]
[{"$f":"'species count'!K184","v":0},{"$f":"'species count'!L184","v":"Pin-tailed Whydah Vidua macroura"},{"$f":"'species count'!R184","v":0},{"$f":"'species count'!J184","v":"VIDMA"}]
[{"$f":"'species count'!K188","v":0},{"$f":"'species count'!L188","v":"unidentified waxbills"},{"$f":"'species count'!R188","v":0},{"$f":"'species count'!J188","v":0}]
[{"$f":"'species count'!B189","v":0},{"$f":"'species count'!C189","v":"Orange-breasted Waxbill Sporaeginthus subflavus"},{"$f":"'species count'!I189","v":0},{"$f":"'species count'!A189","v":"SPOSU"}]
[{"$f":"'species count'!B190","v":0},{"$f":"'species count'!C190","v":"Locustfinch Paludipasser locustella"},{"$f":"'species count'!I190","v":0},{"$f":"'species count'!A190","v":"PALLO"}]
[{"$f":"'species count'!B191","v":0},{"$f":"'species count'!C191","v":"African Quailfinch Ortygospiza atricollis"},{"$f":"'species count'!I191","v":0},{"$f":"'species count'!A191","v":"ORTAT"}]
[{"$f":"'species count'!B192","v":0},{"$f":"'species count'!C192","v":"Common Waxbill Estrilda astrild"},{"$f":"'species count'!I192","v":0},{"$f":"'species count'!A192","v":"ESTAS"}]
[{"$f":"'species count'!K190","v":0},{"$f":"'species count'!L190","v":"Bronze Mannikin Spermestes cucullata"},{"$f":"'species count'!R190","v":0},{"$f":"'species count'!J190","v":"SPECU"}]
[{"$f":"'species count'!K191","v":0},{"$f":"'species count'!L191","v":"Magpie Mannikin Spermestes fringilloides"},{"$f":"'species count'!R191","v":0},{"$f":"'species count'!J191","v":"SPEFR"}]
[{"$f":"'species count'!K192","v":0},{"$f":"'species count'!L192","v":"Red-backed Mannikin Spermestes bicolor"},{"$f":"'species count'!R192","v":0},{"$f":"'species count'!J192","v":"SPEBI"}]
[{"$f":"'species count'!K194","v":0},{"$f":"'species count'!L194","v":"unidentified canaries"},{"$f":"'species count'!R194","v":0},{"$f":"'species count'!J194","v":0}]
[{"$f":"'species count'!B195","v":0},{"$f":"'species count'!C195","v":"Black-throated Canary Crithagra atrogularis"},{"$f":"'species count'!I195","v":0},{"$f":"'species count'!A195","v":"CRIAT"}]
[{"$f":"'species count'!B196","v":0},{"$f":"'species count'!C196","v":"Yellow-fronted Canary Crithagra mozambicus"},{"$f":"'species count'!I196","v":0},{"$f":"'species count'!A196","v":"CRIMO"}]
[{"$f":"'species count'!K196","v":0},{"$f":"'species count'!L196","v":"Brimstone Canary Crithagra sulphuratus"},{"$f":"'species count'!R196","v":0},{"$f":"'species count'!J196","v":"CRISU"}]
[{"$f":"'species count'!B204","v":0},{"$f":"'species count'!C204","v":0},{"$f":"'species count'!I204","v":0}]
[{"$f":"'species count'!B205","v":0},{"$f":"'species count'!C205","v":0},{"$f":"'species count'!I205","v":0}]
[{"$f":"'species count'!B206","v":0},{"$f":"'species count'!C206","v":0},{"$f":"'species count'!I206","v":0}]
[{"$f":"'species count'!B207","v":0},{"$f":"'species count'!C207","v":0},{"$f":"'species count'!I207","v":0}]
[{"$f":"'species count'!B208","v":0},{"$f":"'species count'!C208","v":0},{"$f":"'species count'!I208","v":0}]
[{"$f":"'species count'!B209","v":0},{"$f":"'species count'!C209","v":0},{"$f":"'species count'!I209","v":0}]
[{"$f":"'species count'!B210","v":0},{"$f":"'species count'!C210","v":0},{"$f":"'species count'!I210","v":0}]
[{"$f":"'species count'!B211","v":0},{"$f":"'species count'!C211","v":0},{"$f":"'species count'!I211","v":0}]
[{"$f":"'species count'!B212","v":0},{"$f":"'species count'!C212","v":0},{"$f":"'species count'!I212","v":0}]
[{"$f":"'species count'!B213","v":0},{"$f":"'species count'!C213","v":0},{"$f":"'species count'!I213","v":0}]
[{"$f":"'species count'!B214","v":0},{"$f":"'species count'!C214","v":0},{"$f":"'species count'!I214","v":0}]
[{"$f":"'species count'!B215","v":0},{"$f":"'species count'!C215","v":0},{"$f":"'species count'!I215","v":0}]
[{"$f":"'species count'!B216","v":0},{"$f":"'species count'!C216","v":0},{"$f":"'species count'!I216","v":0}]
[{"$f":"'species count'!B217","v":0},{"$f":"'species count'!C217","v":0},{"$f":"'species count'!I217","v":0}]
[{"$f":"'species count'!B218","v":0},{"$f":"'species count'!C218","v":0},{"$f":"'species count'!I218","v":0}]
[{"$f":"'species count'!B219","v":0},{"$f":"'species count'!C219","v":0},{"$f":"'species count'!I219","v":0}]
[{"$f":"'species count'!B220","v":0},{"$f":"'species count'!C220","v":0},{"$f":"'species count'!I220","v":0}]
[{"$f":"'species count'!B221","v":0},{"$f":"'species count'!C221","v":0},{"$f":"'species count'!I221","v":0}]
[{"$f":"'species count'!B222","v":0},{"$f":"'species count'!C222","v":0},{"$f":"'species count'!I222","v":0}]
[{"$f":"'species count'!B223","v":0},{"$f":"'species count'!C223","v":0},{"$f":"'species count'!I223","v":0}]
[{"$f":"'species count'!B224","v":0},{"$f":"'species count'!C224","v":0},{"$f":"'species count'!I224","v":0}]
[{"$f":"'species count'!B225","v":0},{"$f":"'species count'!C225","v":0},{"$f":"'species count'!I225","v":0}]
[{"$f":"'species count'!B226","v":0},{"$f":"'species count'!C226","v":0},{"$f":"'species count'!I226","v":0}]
[{"$f":"'species count'!B227","v":0},{"$f":"'species count'!C227","v":0},{"$f":"'species count'!I227","v":0}]
[{"$f":"'species count'!B228","v":0},{"$f":"'species count'!C228","v":0},{"$f":"'species count'!I228","v":0}]
[{"$f":"'species count'!B229","v":0},{"$f":"'species count'!C229","v":0},{"$f":"'species count'!I229","v":0}]
[{"$f":"'species count'!B230","v":0},{"$f":"'species count'!C230","v":0},{"$f":"'species count'!I230","v":0}]
[{"$f":"'species count'!B231","v":0},{"$f":"'species count'!C231","v":0},{"$f":"'species count'!I231","v":0}]
[{"$f":"'species count'!B232","v":0},{"$f":"'species count'!C232","v":0},{"$f":"'species count'!I232","v":0}]
[{"$f":"'species count'!B233","v":0},{"$f":"'species count'!C233","v":0},{"$f":"'species count'!I233","v":0}]